bitfinex-derivatives/quotes_SOLF0:USTF0_20250309
["timestamp","ask_amount","ask_price","bid_price","bid_amount"]
[1741540174520,51.96818652,127.57,127.51,0.05750081]
[1741540175122,7.8402,127.57,127.53,7.8422]
[1741540175323,7.8402,127.57,127.51,0.05750081]
[1741540175519,50.1945,127.58,127.49,198.56147855]
[1741540175722,51.96818652,127.57,127.53,0.05572]
[1741540176720,7.8416,127.55,127.53,0.05572]
[1741540177328,7.842,127.54,127.53,0.05572]
[1741540177520,51.96818652,127.57,127.53,0.05572]
[1741540177919,50.1945,127.58,127.53,0.05572]
[1741540178327,3.9145,127.58,127.55,7.841]
[1741540178619,8.1709,127.61,127.53,0.05572]
[1741540178926,53.7509,127.61,127.57,7.8398]
[1741540179122,49.732,127.61,127.57,7.8398]
[1741540179314,49.732,127.61,127.56,0.0512873]
[1741540179524,8.3313,127.64,127.56,0.0512873]
[1741540179824,8.3313,127.64,127.54,45.48]
[1741540180029,7.8369,127.63,127.59,0.05099992]
[1741540180221,4.2515,127.64,127.59,0.05099992]
[1741540181528,4.1363,127.67,127.59,0.05099992]
[1741540181920,4.1363,127.67,127.58,45.24]
[1741540182120,56.10448652,127.67,127.62,0.05329314]
[1741540182422,45.22,127.66,127.62,0.05329314]
[1741540183526,4.1363,127.67,127.63,7.8364]
[1741540183730,51.96818652,127.71,127.62,258.87329314]
[1741540184024,7.8352,127.66,127.62,258.82]
[1741540184224,45.1,127.68,127.65,0.05712098]
[1741540184623,51.96818652,127.67,127.62,258.82]
[1741540184924,51.96818652,127.65,127.56,344.35066257]
[1741540185121,45.06,127.64,127.56,344.35066257]
[1741540185624,45.06,127.64,127.56,258.78]
[1741540185825,0.05042876,127.61,127.59,0.05502773]
[1741540186518,0.05042876,127.61,127.6,7.8384]
[1741540186721,0.01212876,127.61,127.6,7.8384]
[1741540186926,0.01212876,127.61,127.6,11.7584]
[1741540187423,0.01212876,127.61,127.6,7.8384]
[1741540187629,0.01212876,127.61,127.6,69.8384]
[1741540187828,51.96818652,127.69,127.6,8.23685296]
[1741540188322,7.8372,127.62,127.6,8.23685296]
[1741540189026,44.82,127.66,127.6,8.28841881]
[1741540189431,7.8356,127.65,127.61,7.8374]
[1741540189819,44.82,127.66,127.6,0.05156585]
[1741540190425,7.8361,127.64,127.6,7.88976585]
[1741540190727,44.82,127.66,127.6,0.05156585]
[1741540192425,52.655,127.66,127.62,7.8368]
[1741540192622,51.96818652,127.67,127.59,65.10445085]
[1741540192827,51.96818652,127.67,127.63,0.0587596]
[1741540193226,7.8359,127.64,127.63,0.0587596]
[1741540193624,51.96818652,127.67,127.59,65.10445085]
[1741540193928,51.96818652,127.67,127.61,32.15703899]
[1741540194123,59.80248652,127.67,127.62,7.837]
[1741540194825,0.05440125,127.66,127.63,0.05752958]
[1741540195227,0.05440125,127.66,127.63,73.31871357]
[1741540196923,0.05440125,127.66,127.65,85.57066257]
[1741540197124,43.96,127.7,127.65,85.57066257]
[1741540197530,43.96,127.7,127.65,73.41122816]
[1741540198234,43.96,127.7,127.66,0.05511059]
[1741540198531,43.96,127.7,127.67,7.8338]
[1741540198828,43.96,127.7,127.66,0.05511059]
[1741540199021,8.1644,127.71,127.66,0.05511059]
[1741540199826,8.1644,127.71,127.67,7.8337]
[1741540200029,8.1644,127.71,127.66,0.05511059]
[1741540200428,15.9962,127.71,127.66,0.05511059]
[1741540200936,8.1644,127.71,127.66,0.05511059]
[1741540201533,15.9963,127.71,127.67,7.8336]
[1741540201736,8.1644,127.71,127.66,0.05511059]
[1741540203128,8.1644,127.71,127.68,7.8329]
[1741540203528,8.1644,127.71,127.66,0.05511059]
[1741540203729,31.82057441,127.7,127.64,258.6]
[1741540203929,8.1644,127.71,127.64,258.6]
[1741540204329,15.9961,127.71,127.64,258.6]
[1741540204634,8.1644,127.71,127.64,258.6]
[1741540204830,0.05093832,127.69,127.66,0.05788822]
[1741540205928,0.05093832,127.69,127.67,7.8337]
[1741540206130,0.05093832,127.69,127.66,0.05788822]
[1741540207538,3.832e-05,127.69,127.68,31.82057441]
[1741540207836,39.93927441,127.78,127.68,42.98]
[1741540208032,4.7660248,127.77,127.68,42.98]
[1741540208232,8.1187,127.78,127.7,31.82057441]
[1741540208431,8.1187,127.78,127.68,74.80057441]
[1741540208632,7.8289,127.76,127.68,74.80057441]
[1741540208834,4.2172,127.77,127.72,0.05833993]
[1741540209437,31.82057441,127.76,127.68,7.04090074]
[1741540209632,42.94,127.75,127.68,7.04090074]
[1741540210036,4.2172,127.77,127.68,7.04090074]
[1741540210232,7.8302,127.74,127.7,7.8319]
[1741540210629,0.05730469,127.73,127.71,7.88928978]
[1741540210832,0.05730469,127.73,127.71,0.05778978]
[1741540211035,0.05730469,127.73,127.68,7.04090074]
[1741540211234,0.05730469,127.73,127.67,65.25449502]
[1741540211630,42.93730469,127.73,127.67,65.25449502]
[1741540212249,36.58262578,127.72,127.69,0.05336743]
[1741540212537,42.93730469,127.73,127.67,65.25449502]
[1741540212938,7.831,127.72,127.69,7.8326]
[1741540213132,42.93730469,127.73,127.67,65.25449502]
[1741540213739,42.93730469,127.73,127.69,0.05279871]
[1741540213938,42.88,127.73,127.69,0.05279871]
[1741540214140,36.64319075,127.72,127.65,10.81431666]
[1741540214340,4.76409232,127.71,127.65,10.81431666]
[1741540214544,8.67299232,127.71,127.65,10.81431666]
[1741540214738,4.76409232,127.7,127.65,10.81431666]
[1741540215341,42.70035976,127.69,127.66,0.04979862]
[1741540215540,0.06035976,127.69,127.66,0.04979862]
[1741540215737,7.8347,127.66,127.64,323.85449502]
[1741540215944,31.82057441,127.7,127.64,323.85449502]
[1741540216142,31.82057441,127.68,127.64,36.68750565]
[1741540216352,47.46897694,127.67,127.64,36.68750565]
[1741540216539,42.7,127.67,127.64,36.68750565]
[1741540216734,7.8353,127.65,127.64,36.68750565]
[1741540216938,12.60756894,127.65,127.64,23.82255164]
[1741540217141,4.77226894,127.65,127.64,10.90035164]
[1741540217346,50.58640388,127.67,127.64,10.90035164]
[1741540217545,0.05220388,127.67,127.64,10.90035164]
[1741540218340,42.77220388,127.67,127.64,10.90035164]
[1741540218549,4.77758726,127.66,127.64,10.90035164]
[1741540218753,0.05220388,127.67,127.64,0.05804599]
[1741540218951,0.05220388,127.67,127.66,7.8347]
[1741540219850,0.05220388,127.67,127.65,7.8352]
[1741540220347,0.05220388,127.67,127.66,7.8347]
[1741540220547,0.05220388,127.67,127.64,0.05804599]
[1741540220743,0.05220388,127.67,127.65,7.8352]
[1741540221349,0.05220388,127.67,127.66,7.8347]
[1741540221544,0.05220388,127.67,127.64,0.05804599]
[1741540221848,42.7,127.73,127.69,7.8324]
[1741540222047,4.79286287,127.72,127.65,42.68]
[1741540222248,4.79286287,127.71,127.65,42.68]
[1741540222449,4.79744535,127.7,127.65,42.68]
[1741540222650,42.7,127.73,127.65,42.68]
[1741540222947,4.79943038,127.72,127.68,0.05795231]
[1741540223150,0.05422988,127.7,127.68,0.05795231]
[1741540223345,4.79943038,127.69,127.68,7.89135231]
[1741540223552,0.05422988,127.7,127.68,0.05795231]
[1741540224147,0.05422988,127.7,127.69,7.8328]
[1741540224747,11.8686,127.76,127.71,7.8311]
[1741540224947,4.81059852,127.75,127.68,0.05795231]
[1741540225152,4.81059852,127.74,127.67,62.0]
[1741540225354,4.81059852,127.73,127.71,7.8311]
[1741540225554,4.0395,127.76,127.69,42.56]
[1741540225846,0.05136927,127.74,127.71,0.05243579]
[1741540226050,12.64122019,127.73,127.71,0.05243579]
[1741540226255,0.05136927,127.74,127.71,0.05243579]
[1741540226453,4.8102416,127.73,127.71,0.05243579]
[1741540226651,4.8102416,127.72,127.71,0.05243579]
[1741540226847,0.05136927,127.74,127.71,0.05243579]
[1741540227051,4.80766012,127.73,127.71,0.05243579]
[1741540227256,0.05136927,127.74,127.71,0.05243579]
[1741540227659,0.05136927,127.74,127.73,7.8304]
[1741540227955,4.1265,127.79,127.71,31.8730102]
[1741540228145,4.1265,127.79,127.71,31.82057441]
[1741540228348,7.8262,127.8,127.71,31.82057441]
[1741540228649,7.826,127.81,127.77,7.8278]
[1741540228850,54.9604,127.82,127.72,62.0]
[1741540229155,7.8267,127.79,127.78,0.05024229]
[1741540229555,4.81131388,127.79,127.78,0.05024229]
[1741540230446,0.04994275,127.8,127.78,0.05024229]
[1741540231857,7.87644275,127.8,127.78,0.05024229]
[1741540232056,0.04994275,127.8,127.78,0.05024229]
[1741540232258,4.79237849,127.79,127.78,0.05024229]
[1741540232555,0.04994275,127.8,127.78,0.05024229]
[1741540232958,0.04994275,127.8,127.79,7.8267]
[1741540236363,42.54,127.87,127.82,7.8245]
[1741540236557,4.77753126,127.86,127.78,42.59024229]
[1741540236759,7.8247,127.83,127.78,42.54]
[1741540237161,31.82057441,127.86,127.74,290.28057441]
[1741540237363,42.54,127.87,127.78,7.827]
[1741540237364,31.82057441,127.84,127.78,7.827]
[1741540237561,0.05830246,127.81,127.79,0.05044025]
[1741540237959,0.05830246,127.81,127.8,7.8261]
[1741540238862,0.05830246,127.81,127.79,0.05044025]
[1741540239256,0.05830246,127.81,127.8,7.8261]
[1741540239763,0.05830246,127.81,127.79,0.05044025]
[1741540240268,7.88390246,127.81,127.79,0.05044025]
[1741540240857,7.8261,127.8,127.79,0.05044025]
[1741540241261,0.05830246,127.81,127.74,258.46]
[1741540241462,40.71616619,127.8,127.74,258.46]
[1741540241666,42.52,127.79,127.74,258.46]
[1741540241865,7.8283,127.77,127.74,258.46]
[1741540242275,42.52,127.79,127.74,258.46]
[1741540242470,0.05631237,127.77,127.74,258.51600235]
[1741540242764,0.05631237,127.77,127.74,266.34540235]
[1741540243069,0.05631237,127.77,127.74,258.51600235]
[1741540243465,7.8285,127.76,127.74,258.51600235]
[1741540243972,7.88481237,127.77,127.74,258.51600235]
[1741540244167,0.05631237,127.77,127.74,258.51600235]
[1741540244674,0.05631237,127.77,127.75,7.829]
[1741540244874,0.05631237,127.77,127.74,258.51600235]
[1741540245769,0.05631237,127.77,127.75,7.8291]
[1741540246068,0.05631237,127.77,127.74,258.51600235]
[1741540246668,4.1685,127.84,127.76,31.82057441]
[1741540246869,50.3434,127.85,127.81,7.8251]
[1741540247168,42.52,127.85,127.77,3.9845]
[1741540247368,42.52,127.85,127.76,42.52]
[1741540247672,31.82057441,127.82,127.74,258.46]
[1741540247867,51.50056521,127.81,127.79,0.05290613]
[1741540248058,31.82057441,127.8,127.74,258.46]
[1741540248260,35.80997441,127.8,127.74,258.46]
[1741540248460,7.8291,127.75,127.74,258.46]
[1741540248671,42.52,127.78,127.69,42.52]
[1741540248872,42.52,127.78,127.68,258.32]
[1741540248873,74.34057441,127.78,127.68,258.32]
[1741540249067,7.8301,127.74,127.7,7.8319]
[1741540249264,0.05738045,127.74,127.72,0.05336212]
[1741540249466,0.05738045,127.74,127.73,7.8304]
[1741540249665,0.05738045,127.74,127.72,0.05336212]
[1741540250172,7.8304,127.73,127.72,0.05336212]
[1741540250472,7.8313,127.72,127.68,258.32]
[1741540250672,42.52,127.74,127.68,258.32]
[1741540251372,46.3976,127.77,127.68,258.32]
[1741540251573,0.05946874,127.74,127.71,0.05024948]
[1741540252272,7.88926874,127.74,127.71,0.05024948]
[1741540252475,0.05946874,127.74,127.71,0.05024948]
[1741540253272,0.05946874,127.74,127.72,7.8305]
[1741540253674,0.05946874,127.74,127.71,0.05024948]
[1741540253873,7.88966874,127.74,127.71,0.05024948]
[1741540254275,0.05946874,127.74,127.71,0.05024948]
[1741540255566,42.52,127.79,127.74,7.8293]
[1741540255766,3.9894,127.8,127.71,42.57024948]
[1741540255767,3.9894,127.8,127.73,31.82057441]
[1741540255972,11.8157,127.8,127.73,31.82057441]
[1741540256273,11.8157,127.8,127.76,7.8285]
[1741540256573,0.05611434,127.79,127.77,0.05636906]
[1741540257470,7.88321434,127.79,127.77,0.05636906]
[1741540257676,0.05611434,127.79,127.77,0.05636906]
[1741540258178,7.8273,127.78,127.77,0.05636906]
[1741540259076,0.05611434,127.79,127.77,0.05636906]
[1741540259674,7.88321434,127.79,127.77,0.05636906]
[1741540260179,7.8273,127.78,127.77,0.05636906]
[1741540260579,0.05611434,127.79,127.77,0.05636906]
[1741540261274,7.88321434,127.79,127.77,0.05636906]
[1741540261678,0.05611434,127.79,127.77,0.05636906]
[1741540261879,7.88321434,127.79,127.77,0.05636906]
[1741540262281,0.05611434,127.79,127.77,0.05636906]
[1741540262982,0.05611434,127.79,127.77,7.88416906]
[1741540263183,0.05611434,127.79,127.77,0.05636906]
[1741540263784,7.88321434,127.79,127.77,0.05636906]
[1741540264180,0.05611434,127.79,127.77,0.05636906]
[1741540264386,12.62396406,127.78,127.77,0.05636906]
[1741540264983,4.79666406,127.78,127.7,4.2261]
[1741540265284,4.79920827,127.77,127.7,4.2261]
[1741540265478,42.5,127.79,127.7,4.2261]
[1741540265679,4.2061,127.81,127.7,4.2261]
[1741540265881,4.80240762,127.8,127.7,4.2261]
[1741540266074,0.05913961,127.77,127.74,0.05272837]
[1741540267680,7.8291,127.75,127.74,0.05272837]
[1741540267882,0.05913961,127.77,127.74,0.05272837]
[1741540268283,7.8291,127.75,127.74,0.05272837]
[1741540268481,0.05913961,127.77,127.74,0.05272837]
[1741540268686,4.81606689,127.76,127.74,0.05272837]
[1741540268981,4.81524437,127.75,127.68,290.66719784]
[1741540269177,4.81524437,127.74,127.68,290.66719784]
[1741540269378,42.5,127.78,127.71,19.85435373]
[1741540269575,4.81672041,127.77,127.73,19.85435373]
[1741540269779,7.8264,127.8,127.77,7.8276]
[1741540269978,4.81754965,127.79,127.77,7.88262384]
[1741540270176,4.81754965,127.78,127.77,0.05502384]
[1741540270479,4.81754965,127.79,127.77,0.05502384]
[1741540270677,4.81754965,127.78,127.77,0.05502384]
[1741540270876,12.64464965,127.79,127.77,0.05502384]
[1741540271084,4.81754965,127.78,127.77,0.05502384]
[1741540271282,12.64484965,127.78,127.77,0.05502384]
[1741540271476,4.81754965,127.78,127.77,0.05502384]
[1741540271681,4.81754965,127.79,127.77,0.05502384]
[1741540271892,0.05220093,127.8,127.77,19.90937757]
[1741540272077,0.05220093,127.8,127.77,23.92427757]
[1741540272278,19.85435373,127.88,127.79,19.85435373]
[1741540272486,4.82876347,127.87,127.79,62.35435373]
[1741540272788,4.82876347,127.86,127.79,62.35435373]
[1741540272986,4.82876347,127.85,127.79,62.35435373]
[1741540273186,4.82876347,127.84,127.79,62.35435373]
[1741540273385,0.0598513,127.83,127.81,0.05323971]
[1741540273587,7.8231,127.85,127.79,62.35435373]
[1741540273783,0.05488026,127.83,127.81,0.0546384]
[1741540273983,7.822,127.87,127.81,0.0546384]
[1741540274285,0.0584534,127.83,127.81,19.85435373]
[1741540274481,42.5,127.89,127.81,19.85435373]
[1741540274689,0.05827947,127.83,127.81,0.05086642]
[1741540274888,7.8224,127.86,127.79,62.35435373]
[1741540275191,0.05405529,127.83,127.82,7.8247]
[1741540276584,23.73745373,127.9,127.85,7.8226]
[1741540276785,7.8222,127.87,127.81,19.85435373]
[1741540276986,4.82205654,127.86,127.81,19.85435373]
[1741540277279,7.8228,127.86,127.81,19.85435373]
[1741540277487,66.21745373,127.9,127.81,19.85435373]
[1741540277791,0.05417406,127.87,127.84,0.05837243]
[1741540277985,4.8200848,127.86,127.84,0.05837243]
[1741540278186,24.67443853,127.86,127.84,0.05837243]
[1741540278392,12.6430848,127.85,127.84,0.05837243]
[1741540278987,7.8246,127.83,127.77,4.0149]
[1741540279186,4.81680625,127.82,127.77,4.0149]
[1741540279385,62.33435373,127.86,127.77,4.0149]
[1741540279586,7.8241,127.84,127.77,4.0149]
[1741540279789,4.81690797,127.83,127.77,4.0149]
[1741540279987,0.05555262,127.82,127.79,19.90764846]
[1741540280189,23.73745373,127.9,127.81,19.85435373]
[1741540280390,4.81764721,127.89,127.83,7.8238]
[1741540280695,4.81764721,127.88,127.81,19.85435373]
[1741540280889,4.81764721,127.87,127.81,19.85435373]
[1741540281193,66.19745373,127.9,127.81,19.85435373]
[1741540281396,0.05189136,127.85,127.83,0.05051434]
[1741540281591,7.8206,127.89,127.83,0.05051434]
[1741540281790,0.05805437,127.85,127.83,0.05051434]
[1741540281990,0.05805437,127.85,127.84,7.8236]
[1741540283190,24.11585373,127.94,127.83,19.90486807]
[1741540283393,47.27246597,127.93,127.85,19.85435373]
[1741540283592,4.81246597,127.92,127.87,19.85435373]
[1741540283787,3.9639,127.96,127.91,7.8189]
[1741540283993,4.8144751,127.95,127.87,62.31435373]
[1741540284193,4.8144751,127.94,127.91,19.85435373]
[1741540284495,0.05772828,127.92,127.91,19.85435373]
[1741540284686,27.66905373,127.99,127.91,19.85435373]
[1741540284997,7.8149,127.99,127.91,19.85435373]
[1741540285192,4.80638182,127.98,127.91,19.85435373]
[1741540285388,42.46,128.0,127.91,19.85435373]
[1741540285589,4.80551889,127.99,127.93,19.85435373]
[1741540285790,19.85435373,128.03,127.95,0.05897127]
[1741540285791,62.31435373,128.03,127.95,0.05897127]
[1741540285991,4.80687591,128.02,127.95,19.85435373]
[1741540286191,42.46,128.07,127.98,0.05602044]
[1741540286386,4.79937184,128.06,127.98,0.05602044]
[1741540286597,4.79937184,128.05,127.95,74.10974403]
[1741540286796,4.79937184,128.04,128.01,0.05343068]
[1741540286995,4.79977238,128.03,128.01,0.05343068]
[1741540287197,74.10974403,128.07,128.01,0.05343068]
[1741540287389,4.79141311,128.06,128.01,0.05343068]
[1741540287595,4.79141311,128.05,128.01,0.05343068]
[1741540287791,42.44,128.08,128.01,0.05343068]
[1741540287995,31.64974403,128.05,128.01,0.05343068]
[1741540288197,47.23243166,128.04,128.01,0.05343068]
[1741540288497,46.7432,128.07,128.01,0.05343068]
[1741540288998,4.78244603,128.06,128.01,0.05343068]
[1741540289191,46.7432,128.07,128.01,0.05343068]
[1741540289392,4.77460645,128.06,128.01,0.05343068]
[1741540289595,78.39294403,128.07,128.01,0.05343068]
[1741540289792,4.77421623,128.06,128.01,0.05343068]
[1741540289995,4.77421623,128.05,128.01,0.05343068]
[1741540290198,7.8115,128.04,128.01,0.05343068]
[1741540290699,7.8109,128.05,128.01,0.05343068]
[1741540291198,46.7432,128.07,128.01,0.05343068]
[1741540291789,7.8119,128.04,128.01,0.05343068]
[1741540292401,7.8121,128.03,128.01,0.05343068]
[1741540292793,4.3032,128.07,128.01,0.05343068]
[1741540292996,7.8114,128.05,128.01,0.05343068]
[1741540293198,35.62734403,128.09,128.01,0.05343068]
[1741540293199,3.9776,128.09,128.01,0.05343068]
[1741540293699,7.8092,128.08,128.04,0.05862005]
[1741540294394,7.8092,128.08,128.04,7.86992005]
[1741540294595,7.8098,128.07,128.04,0.05862005]
[1741540294803,35.62734403,128.09,128.04,0.05862005]
[1741540295096,7.8128,128.02,128.0,257.98]
[1741540295299,31.64974403,128.05,128.0,257.98]
[1741540295600,42.4,128.06,128.0,257.98]
[1741540296100,7.8132,128.01,128.0,257.98]
[1741540296300,7.8132,128.01,127.95,42.38]
[1741540296497,0.05073285,128.04,127.99,0.05673625]
[1741540296699,31.64974403,128.05,127.99,0.05673625]
[1741540296998,0.05372449,128.03,127.99,0.05673625]
[1741540298601,0.05372449,128.03,127.99,7.87083625]
[1741540298602,7.86632449,128.03,127.99,7.87083625]
[1741540298904,0.05372449,128.03,127.99,0.05673625]
[1741540301300,31.70346852,128.03,127.94,257.92]
[1741540301705,3.9393,128.02,127.94,257.92]
[1741540301905,7.8151,127.98,127.94,265.7371]
[1741540302099,42.38,128.0,127.94,257.92]
[1741540302700,3.9393,128.02,127.94,257.92]
[1741540302701,0.05948157,127.98,127.96,0.05314604]
[1741540302897,42.38,128.05,127.96,0.05314604]
[1741540303104,42.38,128.05,127.95,74.02974403]
[1741540303403,7.8123,128.03,127.99,7.814]
[1741540303897,7.8121,128.03,127.99,7.8139]
[1741540304102,0.05322117,128.02,128.0,0.05082022]
[1741540304504,0.05322117,128.02,128.01,7.8132]
[1741540304704,0.05322117,128.02,128.0,0.05082022]
[1741540305797,0.05322117,128.02,128.01,7.8132]
[1741540306205,4.219,128.07,128.0,0.05082022]
[1741540306405,12.0288,128.07,128.03,7.8117]
[1741540306707,4.219,128.07,128.03,7.8117]
[1741540307099,3.9661,128.12,128.03,74.00974403]
[1741540307298,4.0201,128.14,128.06,31.64974403]
[1741540307802,4.0201,128.14,128.09,7.85922592]
[1741540308400,4.0201,128.14,128.09,0.05132592]
[1741540309201,3.9661,128.17,128.09,31.70106995]
[1741540309507,3.9661,128.17,128.11,31.64974403]
[1741540309694,3.9661,128.17,128.12,0.05943792]
[1741540312106,7.8046,128.16,128.12,0.05943792]
[1741540312308,3.9661,128.17,128.12,0.05943792]
[1741540312906,7.8052,128.15,128.12,0.05943792]
[1741540313510,3.9661,128.17,128.12,0.05943792]
[1741540313710,7.8058,128.14,128.12,0.05943792]
[1741540313900,3.9661,128.17,128.12,0.05943792]
[1741540314102,7.8059,128.13,128.12,0.05943792]
[1741540314311,42.32,128.14,128.12,0.05943792]
[1741540314705,46.2861,128.17,128.12,0.05943792]
[1741540315305,4.77034207,128.16,128.12,0.05943792]
[1741540315503,7.8059,128.13,128.06,51.00414515]
[1741540315708,42.32,128.12,128.06,43.19444515]
[1741540316009,7.8086,128.09,128.06,43.19444515]
[1741540316509,7.8092,128.08,128.06,43.19444515]
[1741540316706,0.05571421,128.09,128.06,43.2498094]
[1741540317203,7.86441421,128.09,128.06,43.2498094]
[1741540317403,0.05571421,128.09,128.06,43.2498094]
[1741540317601,0.05571421,128.09,128.06,51.0599094]
[1741540317800,0.05571421,128.09,128.06,0.05536425]
[1741540319012,42.3,128.12,128.06,0.05536425]
[1741540321011,42.3,128.12,128.07,17.66992044]
[1741540321215,7.8083,128.1,128.07,17.66992044]
[1741540321411,42.3,128.12,128.07,17.66992044]
[1741540321813,7.8083,128.1,128.07,17.66992044]
[1741540322013,42.3,128.12,128.07,17.66992044]
[1741540322414,7.809,128.08,128.07,17.66992044]
[1741540322716,73.94974403,128.12,128.07,17.66992044]
[1741540323013,7.8084,128.09,128.07,17.66992044]
[1741540323211,73.94974403,128.12,128.08,6.82267313]
[1741540323416,4.78742726,128.11,128.08,6.82267313]
[1741540323716,7.8084,128.09,128.08,6.8802747]
[1741540324616,4.79023832,128.09,128.07,11.60654515]
[1741540324816,7.8096,128.07,128.06,10.37646984]
[1741540325011,12.59983832,128.07,128.06,6.984e-05]
[1741540325406,16.49983832,128.07,128.06,6.984e-05]
[1741540326007,12.59983832,128.07,128.06,6.984e-05]
[1741540326213,7.8096,128.07,128.06,6.984e-05]
[1741540326520,4.80263772,128.07,128.05,0.05043245]
[1741540326818,4.80263772,128.06,128.05,0.05043245]
[1741540327006,7.8102,128.06,128.05,0.05043245]
[1741540327210,12.61283772,128.06,128.05,0.05043245]
[1741540328212,12.62896941,128.06,128.05,0.05043245]
[1741540328717,4.81876941,128.06,128.05,0.05043245]
[1741540329314,12.62896941,128.06,128.05,0.05043245]
[1741540329717,12.62896941,128.06,128.05,3.245e-05]
[1741540329915,7.8137,128.01,127.97,265.8156]
[1741540330122,4.8215757,128.0,127.94,29.36239741]
[1741540330325,4.8215757,127.99,127.95,7.8166]
[1741540330620,42.3,128.02,127.94,61.01214144]
[1741540330821,4.81920729,128.01,127.96,7.816]
[1741540331123,4.81920729,128.01,127.94,61.01214144]
[1741540331124,0.05880645,127.99,127.97,0.05087205]
[1741540332321,42.3,128.04,127.97,0.05087205]
[1741540332522,4.82298506,128.03,128.01,7.8128]
[1741540332822,4.82298506,128.02,128.01,7.8128]
[1741540333018,42.3,128.07,127.98,31.64974403]
[1741540333324,4.82416957,128.06,127.98,31.64974403]
[1741540333526,42.3,128.07,128.01,0.05081765]
[1741540333527,4.82416957,128.05,128.01,0.05081765]
[1741540333825,58.78481902,128.12,128.03,31.64974403]
[1741540334018,58.78481902,128.12,128.06,31.64974403]
[1741540334224,58.78481902,128.12,128.11,7.8071]
[1741540334420,43.17972949,128.12,128.11,7.8071]
[1741540334619,43.17972949,128.12,128.07,4.0616]
[1741540335122,43.17972949,128.12,128.11,7.8071]
[1741540335426,43.17972949,128.16,128.08,31.70186274]
[1741540335627,43.17972949,128.16,128.1,31.64974403]
[1741540335822,43.17972949,128.16,128.11,0.05309976]
[1741540336018,43.17972949,128.16,128.12,31.64974403]
[1741540336513,43.17972949,128.16,128.15,7.8047]
[1741540336715,36.72792949,128.16,128.15,7.8047]
[1741540337112,30.27592949,128.16,128.15,7.8047]
[1741540337314,73.45485899,128.17,128.16,7.8041]
[1741540337523,22.29638848,128.17,128.16,7.8041]
[1741540337726,9.39198848,128.17,128.16,7.8041]
[1741540338621,8.848e-05,128.17,128.16,7.8041]
[1741540339626,215.81555494,128.2,128.16,31.64974403]
[1741540339925,42.26,128.25,128.16,31.64974403]
[1741540340125,42.26,128.25,128.18,7.8027]
[1741540340327,42.26,128.25,128.14,73.92974403]
[1741540340515,42.26,128.25,128.2,0.05643467]
[1741540340721,7.7997,128.24,128.2,0.05643467]
[1741540340919,8.1237,128.26,128.2,0.05643467]
[1741540341321,8.1237,128.26,128.2,7.85793467]
[1741540341720,8.1237,128.26,128.2,0.05643467]
[1741540341928,8.1237,128.26,128.22,7.8003]
[1741540342326,8.1237,128.26,128.19,31.64974403]
[1741540342527,15.9219,128.26,128.23,0.05150934]
[1741540342930,8.1237,128.26,128.23,0.05150934]
[1741540343925,42.24,128.25,128.18,257.66]
[1741540344125,50.0388,128.25,128.18,257.66]
[1741540344323,8.1237,128.26,128.18,257.66]
[1741540344725,8.1237,128.26,128.21,7.8006]
[1741540345229,0.05331762,128.25,128.22,7.85920192]
[1741540345430,0.05331762,128.25,128.22,0.05890192]
[1741540347340,7.85201762,128.25,128.22,0.05890192]
[1741540347727,0.05331762,128.25,128.22,0.05890192]
[1741540347933,0.05331762,128.25,128.24,7.7992]
[1741540348128,0.05331762,128.25,128.22,0.05890192]
[1741540348330,0.05331762,128.25,128.23,7.7995]
[1741540348927,0.05331762,128.25,128.24,7.7992]
[1741540350838,7.7962,128.29,128.26,7.798]
[1741540351236,7.7962,128.29,128.23,42.22]
[1741540351433,7.7962,128.29,128.25,7.7985]
[1741540351738,73.84974403,128.34,128.23,42.22]
[1741540351925,11.8825,128.31,128.26,0.05580894]
[1741540352132,42.2,128.3,128.2,42.2]
[1741540352432,42.2,128.3,128.27,0.05513681]
[1741540352636,7.7973,128.28,128.2,42.18]
[1741540352837,7.7973,128.28,128.27,0.05369461]
[1741540353037,7.7973,128.28,128.2,42.18]
[1741540353237,7.7973,128.28,128.26,0.05465341]
[1741540353441,7.7963,128.29,128.25,7.7983]
[1741540353638,42.2,128.3,128.26,0.05669821]
[1741540355435,11.8825,128.31,128.26,0.05669821]
[1741540355637,54.0625,128.31,128.26,0.05669821]
[1741540356328,11.8825,128.31,128.26,0.05669821]
[1741540356533,7.8792,128.31,128.26,0.05669821]